Cogmind - Beta 16 --- EXPLORER MODE // 2026.01.20 @ 10:44:03 Player: K.K.Y. Result: Destroyed by G-67 Veteran with Plasma Rifle Performance ------------- Evolutions (5) 2500 Regions Visited (9) 1800 Robots Destroyed (150) 750 Value Destroyed (6028) 6028 Prototype IDs (24) 480 Alien Tech Used (0) 0 Bonus (4945) 4945 TOTAL SCORE: 16503 Bonus ------- Follower Combat Kills 655 Delivered SUBCON Basin 2000 Met Warlord at Base 500 MAIN.C Attacked Warlord 500 Warlord Defense Kills 1322 Friendly Fire -32 Cogmind --------- Core Integrity 0/1000 Matter 58/300 Energy 15/500 System Corruption 0% Temperature Cool (18) Movement Core (100) Ox1 Location -5/Warlord Parts ------- > --- POWER (2) -------- (None) > --- PROPULSION (4) --- (None) > --- UTILITY (9) ------ Improved Energy Well Improved Signal Interpreter Experimental Targeting Computer Experimental Core Analyzer Hacking Suite Amulet of Y3-NDR > --- WEAPON (3) ------- (None) > --- INVENTORY (5) ---- Light Humpback Advanced Terrain Scan Processor Jamming Amplifier Advanced ECM Suite Peak State ------------ > --- POWER ------------ Light Antimatter Reactor Light Antimatter Reactor > --- PROPULSION ------- Spiked Medium Treads Armored Medium Treads Armored Medium Treads Armored Medium Treads > --- UTILITY ---------- Experimental Heat Sink Huge Storage Unit Experimental Sensor Array Improved Signal Interpreter Hacking Suite Makeshift System Shield Improved Component Analysis Suite Improved Corruption Screen Amulet of Y3-NDR > --- WEAPON ----------- KE Penetrator Enhanced Gauss Cannon Scatter Rocket Array > --- INVENTORY -------- Light Antimatter Reactor Advanced Heat Sink High-capacity Storage Unit Huge Storage Unit Light Humpback Improved Energy Well Advanced Terrain Scan Processor Advanced Transmission Jammer Jamming Amplifier Advanced ECM Suite Improved Shock Absorption System Experimental Shock Absorption System Advanced Shield Generator Authchip [Propulsion] Authchip [Processor] Wave Gun Long-range Proton Cannon Enhanced Nova Cannon Enhanced Nova Cannon Improved Remote Datajack Mining Laser Improved Plasma Cutter Multitool Power Sword [Rating: 114] Favorites ----------- Power Light Antimatter Reactor Engine Ion Engine Power Core Neutrino Core Reactor Light Antimatter Reactor Propulsion Flexi-carbon Leg Treads Light Treads Leg Flexi-carbon Leg Utility Huge Storage Unit Device Experimental Heat Sink Storage Huge Storage Unit Processor Tech Extrapolator Hackware Makeshift System Shield Protection Improved Light Armor Plating Weapon Scatter Rocket Array Energy Gun Particle Gun Energy Cannon Long-range Proton Cannon Ballistic Gun KE Penetrator Ballistic Cannon Enhanced Gauss Cannon Launcher Scatter Rocket Array Special Weapon Mining Laser Build | -11 -10 -10 -10 -7 -7 -5 -5 -5 -5 ------- Run | Yrd Mat Min Sub Rec Scr Fac Upp Upp War Slots Evolved 11 | . 1 . . . . 10 . . . Power 1 | . . . . . . 1 . . . Propulsion 2 | . . . . . . 2 . . . Utility 7 | . 1 . . . . 6 . . . Weapon 1 | . . . . . . 1 . . . Parts Attached 108 | 6 4 . 17 6 3 40 9 8 15 Power 16 | 1 . . 2 1 1 4 3 2 2 Engine 8 | 1 . . 1 1 1 2 2 . . Core 3 | . . . 1 . . 2 . . . Reactor 5 | . . . . . . . 1 2 2 Propulsion 25 | 2 . . 5 . . 10 2 2 4 Treads 10 | 2 . . 4 . . . . . 4 Leg 15 | . . . 1 . . 10 2 2 . Wheel . | . . . . . . . . . . Hover . | . . . . . . . . . . Flight . | . . . . . . . . . . Utility 42 | 2 2 . 5 5 1 17 2 3 5 Device 21 | 1 1 . 2 3 . 8 1 2 3 Storage 7 | 1 1 . 3 . . 2 . . . Processor 7 | . . . . . 1 2 1 1 2 Hackware 4 | . . . . 1 . 3 . . . Protection 3 | . . . . 1 . 2 . . . Artifact . | . . . . . . . . . . Weapon 25 | 1 2 . 5 . 1 9 2 1 4 Energy Gun 5 | 1 1 . 1 . . 1 . . 1 Energy Cannon 5 | . . . . . . 2 . . 3 Ballistic Gun 2 | . . . 1 . . . 1 . . Ballistic Cannon 10 | . . . 2 . 1 5 1 1 . Launcher 1 | . . . . . . 1 . . . Special Weapon 2 | . 1 . 1 . . . . . . Impact Weapon . | . . . . . . . . . . Slashing Weapon . | . . . . . . . . . . Piercing Weapon . | . . . . . . . . . . Special Melee Weapon . | . . . . . . . . . . Unidentified Prototypes 10 | . . . 2 . . 4 . 1 3 Parts Lost 42 | . . . . . . 14 4 3 21 Power 6 | . . . . . . 1 . 1 4 Propulsion 8 | . . . . . . 2 1 1 4 Utility 15 | . . . . . . 7 1 1 6 Weapon 13 | . . . . . . 4 2 . 7 Highest Loss Streak 19 | . . . . . . 3 3 1 19 To Critical Strikes . | . . . . . . . . . . Average Backups 19 | 2 5 8 13 16 23 23 23 24 23 Power . | . . 2 1 . . . 1 1 . Propulsion . | . . 1 . . 1 1 1 1 . Utility 10 | 2 2 3 6 10 16 12 13 13 13 Weapon 5 | . 1 2 4 4 5 8 5 6 5 Tool/Special . | . . . . . . . . . . Unused Backups 41 | . 1 . 5 6 3 12 1 1 12 Power 2 | . 1 . . 1 . . . . . Propulsion 4 | . . . . . . 1 1 1 1 Utility 22 | . . . 3 3 3 5 . . 8 Weapon 10 | . . . 2 2 . 5 . . 1 Tool/Special 3 | . . . . . . 1 . . 2 Average Slot Usage (%) 90 | . 94 100 84 72 90 91 96 99 98 Engine 6 | . 12 12 9 5 10 4 5 3 . Core 2 | . . . 1 4 . 5 2 . . Reactor 1 | . . . . . . . 2 7 10 Treads 4 | . 24 25 13 . . . . . 1 Leg 13 | . . . 4 10 10 17 21 21 19 Device 19 | . 21 25 21 17 20 18 15 17 21 Storage 8 | . 11 12 11 10 10 5 5 5 5 Processor 6 | . . . . . 2 10 15 14 11 Hackware 5 | . . . . 1 7 5 11 11 10 Protection 2 | . . . . 3 10 6 . . . Energy Gun 4 | . 23 25 11 . . . . . . Ballistic Gun 1 | . . . 2 . . . 4 4 4 Ballistic Cannon 8 | . . . 6 20 20 7 3 5 4 Launcher 2 | . . . . . . 2 5 5 4 Peak Build Rating 114 | 6 10 11 54 54 57 111 105 110 114 Average Rating 70 | 4 9 10 26 50 54 101 100 108 107 On Entrance 49 | . 5 10 11 54 53 57 92 105 109 Avg Prop Armor Cover (%) 4 | . . . . . . . . 4 . Naked Turns . | . . . . . . . . . . Heaviest Build 218 | 8 32 32 62 114 113 218 216 129 141 Greatest Support 109 | 40 40 40 55 55 55 98 78 78 109 Greatest Overweight (x) 10 | . 10 . 1 2 2 3 4 2 4 Average Overweight (x) . | . . . . 1 2 1 1 1 1 Largest Inventory Capacity 25 | 10 15 15 25 25 25 25 25 25 25 Average Capacity 22 | 5 14 15 17 23 25 25 25 25 24 Most Carried 25 | 5 8 11 25 25 25 25 25 25 25 Average Carried 21 | 2 5 8 16 23 24 24 24 25 24 Final Capacity 25 | 5 15 15 25 25 25 25 25 25 5 Final Carried 25 | 4 7 11 25 25 25 25 25 25 5 Class Distribution -------------------- 55% | Hacker-Mutant 24% | Hacker-Skirmisher 19% | Hacker-Tank Dominant Class ---------------- Hacker-Mutant | -10/Materials Hacker-Mutant | -10/Mines Hacker-Mutant | -10/Subcaves Hacker-Mutant | -7/Recycling Hacker-Mutant | -7/Scraptown Hacker-Tank | -5/Factory Hacker-Skirmisher | -5/Upper Caves Hacker-Skirmisher | -5/Upper Caves Hacker-Skirmisher | -5/Warlord Resources | -11 -10 -10 -10 -7 -7 -5 -5 -5 -5 ----------- Run | Yrd Mat Min Sub Rec Scr Fac Upp Upp War Matter Collected 4606 | 268 62 . 501 382 56 2470 380 372 115 Remotely . | . . . . . . . . . . Salvage Created 6225 | 151 552 37 222 233 . 3962 417 240 411 Parts 295 | 6 41 . 15 7 . 181 8 9 28 Haulers Intercepted 6 | . 2 . . . . 4 . . . Recyclers Shooed 6 | . . . . . . 6 . . . Parts Field Recycled . | . . . . . . . . . . Retrieved Matter . | . . . . . . . . . . Parts Self-Destructed . | . . . . . . . . . . Prevented . | . . . . . . . . . . Parts Restored . | . . . . . . . . . . Kills | -11 -10 -10 -10 -7 -7 -5 -5 -5 -5 ------- Run | Yrd Mat Min Sub Rec Scr Fac Upp Upp War Combat Hostiles Destroyed 104 | . 11 2 3 3 . 61 8 5 11 Guns 21 | . 9 2 3 . . 1 1 2 3 Cannons 71 | . 2 . . 3 . 51 5 3 7 AOE 9 | . . . . . . 6 2 . 1 Classes Destroyed 19 | 2 5 . 2 2 . 4 . . 4 Worker 7 | . . . . . . 7 . . . Builder 7 | . . . . . . 7 . . . Tunneler 4 | 3 1 . . . . . . . . Hauler 6 | . 2 . . . . 4 . . . Recycler 8 | 1 1 . . 1 . 5 . . . Mechanic 2 | . 1 . . . . 1 . . . Watcher 11 | . 3 . . . . 8 . . . Swarmer 22 | . 4 2 2 1 . 10 2 . 1 Saboteur 3 | . . . . . . . . . 3 Grunt 21 | . 7 . . . . 9 3 1 1 Brawler 4 | . . . . 1 . 1 1 1 . Duelist 4 | . . . . 1 . . 1 2 . Sentry 12 | . . . 1 1 . 9 1 . . Specialist 1 | . . . . . . . . . 1 Hunter 12 | . . . . . . 12 . . . Programmer 24 | . . . . . . 20 . 1 3 Striker 1 | . . . . . . . . . 1 Executioner 1 | . . . . . . . . . 1 Artisan 1 | . . . 1 . . . . . . Packrat 1 | . . . . . . . 1 . . Best Kill Streak 5 | 2 2 2 2 2 . 5 5 2 4 Combat Bots Only 5 | . 2 2 2 2 . 4 5 2 4 Max Kills in Single Turn 3 | 1 2 1 1 1 . 3 3 1 2 Gunslinging 1 | . 1 . . . . . . . . Exploded 2 | . . . . . . 2 2 . 1 Melee . | . . . . . . . . . . Uniques/NPCs Destroyed . | . . . . . . . . . . Combat | -11 -10 -10 -10 -7 -7 -5 -5 -5 -5 -------- Run | Yrd Mat Min Sub Rec Scr Fac Upp Upp War Hostile Shots Fired 1055 | . 28 7 61 21 . 398 60 31 449 Missed 349 | . 9 2 33 4 . 133 17 11 140 Hits 706 | . 19 5 28 17 . 265 43 20 309 Melee 35 | . . . . 11 . 1 . 8 15 Projectile 671 | . 19 5 28 6 . 264 43 12 294 AOE 2 | . . . . . . 1 . 1 . Critical Strikes 35 | . . . . 2 . 15 3 6 9 Part Disruptions 4 | . . . . . . 2 . 1 1 Damage Taken 8798 | . 111 22 252 294 . 3573 539 371 3636 Core 1161 | . 25 . 51 83 . 278 100 76 548 Absorbed by Shields 387 | . . . . . . 110 . . 277 Ignored by Resistances 5413 | . 77 16 133 170 . 2181 319 216 2301 Regen/Repaired (Parts) 487 | . . . . . . 406 . . 81 Core Remaining (%) 68 | 100 . . . . 36 . . . . Volleys Fired 468 | 15 41 6 81 14 . 221 36 24 30 Largest 3 | 1 2 2 2 2 . 3 2 2 3 Hottest 282 | 50 150 115 156 88 . 182 116 80 282 Shots Fired 895 | 15 77 8 158 30 . 443 56 48 60 Gun 289 | 15 72 8 93 . . 28 24 24 25 Cannon 562 | . . . 30 30 . 413 31 24 34 Launcher 4 | . . . . . . 2 1 . 1 Special 40 | . 5 . 35 . . . . . . Kinetic 471 | . . . 44 30 . 264 41 48 44 Thermal 228 | 15 77 8 114 . . . . . 14 Explosive 4 | . . . . . . 2 1 . 1 Electromagnetic 192 | . . . . . . 177 14 . 1 Robot Hit Streak 45 | 13 15 15 25 12 . 45 22 36 26 Robot Miss Streak 6 | 1 1 1 1 1 . 6 1 1 2 Penetration Max 1 | . . . . 1 . 1 . . 1 Secondary Targets 2 | . 1 . 1 . . . . . . Max Gunslinging Chain 1 | . 1 . 1 . . . . . . Shots Hit Robots 628 | 14 61 6 45 22 . 341 45 43 51 Core Hits 310 | 5 29 3 13 9 . 195 27 7 22 Critical Kills 13 | . . . . 1 . 7 4 1 . Critical Parts Destroyed 33 | . . . . 8 . 20 5 . . Critical Strikes 90 | 3 3 2 4 12 . 51 10 4 1 Burn 12 | 3 3 2 4 . . . . . . Destroy 50 | . . . . 12 . 28 9 1 . Blast 26 | . . . . . . 21 1 3 1 Corrupt 2 | . . . . . . 2 . . . Melee Attacks . | . . . . . . . . . . Impact . | . . . . . . . . . . Slashing . | . . . . . . . . . . Piercing . | . . . . . . . . . . Sneak Attacks . | . . . . . . . . . . Combat Hostiles . | . . . . . . . . . . Follow-up Attacks . | . . . . . . . . . . Damage Inflicted 17616 | 176 862 77 703 644 . 11009 905 1306 1934 Guns 3221 | 176 790 77 557 . . 231 213 547 630 Cannons 12396 | . . . . 644 . 9387 374 759 1232 Explosions 1781 | . . . . . . 1391 318 . 72 Melee . | . . . . . . . . . . Ramming 28 | . . . 28 . . . . . . Kinetic 10150 | . . . . 644 . 6424 496 1306 1280 Thermal 3459 | 176 862 77 675 . . 1084 41 . 544 Explosive 656 | . . . . . . 307 277 . 72 Electromagnetic 3323 | . . . . . . 3194 91 . 38 Impact . | . . . . . . . . . . Slashing . | . . . . . . . . . . Piercing . | . . . . . . . . . . Highest Corruption 2 | . . . . 2 . . . . . Average Corruption 1 | . . . . 1 . . . . . Corruption Purged . | . . . . . . . . . . Corruption Blocked 13 | . . . . . . 5 . 4 4 Effects 28 | . . . . 28 . . . . . Message Errors 7 | . . . . 7 . . . . . Matter Fused 9 | . . . . 9 . . . . . Heat Flow Errors 3 | . . . . 3 . . . . . Energy Discharges 2 | . . . . 2 . . . . . Data Loss (minor) 5 | . . . . 5 . . . . . Misfires 2 | . . . . 2 . . . . . Overload Shots . | . . . . . . . . . . Overflow Damage 719 | . . . . 43 . 527 27 66 56 Projectiles 482 | . . . . 43 . 291 26 66 56 Explosions 237 | . . . . . . 236 1 . . Melee . | . . . . . . . . . . Knockbacks 91 | . . . 1 4 . 67 4 8 7 Impact 1 | . . . 1 . . . . . . Kinetic 84 | . . . . 4 . 61 4 8 7 Secondary 6 | . . . . . . 6 . . . Self-Inflicted Damage 375 | . . . . . . 352 23 . . Shots 17 | . . . . . . 15 2 . . Rammed 12 | . . . 12 . . . . . . Targets Rammed 12 | . . . 12 . . . . . . Kicked . | . . . . . . . . . . Crushed . | . . . . . . . . . . Highest Temperature 300 | 50 300 94 48 243 . 126 10 . 192 Average Temperature 67 | 21 86 53 19 93 . 40 5 . 79 Received Heat Transfer 2343 | . 75 . 141 18 . 624 255 21 1209 Effects 3 | . . . . 3 . . . . . Interference 3 | . . . . 3 . . . . . Siege Activations . | . . . . . . . . . . Martial Activations . | . . . . . . . . . . Shielding Activations . | . . . . . . . . . . Robots Disrupted 1 | . . . . . . . 1 . . Combat Hostiles 1 | . . . . . . . 1 . . Robots Corrupted 5 | . . . . . . 5 . . . Combat Hostiles 3 | . . . . . . 3 . . . Parts Fried 15 | . . . . . . 15 . . . Impact Corruptions . | . . . . . . . . . . Robots Melted . | . . . . . . . . . . Combat Hostiles . | . . . . . . . . . . Parts Melted 23 | 6 8 2 4 . . 3 . . . Heat Transferred 6754 | 740 2518 370 1977 . . 750 50 . 349 Parts Sabotaged . | . . . . . . . . . . Parts Stolen . | . . . . . . . . . . Parts Stripped . | . . . . . . . . . . Power Chain Reactions 6 | . . . . . . 5 1 . . Alert | -11 -10 -10 -10 -7 -7 -5 -5 -5 -5 ------- Run | Yrd Mat Min Sub Rec Scr Fac Upp Upp War Maximum Alert Level 1 | . . . . . . 1 . . . Low Security (%) 98 | 100 100 100 . 100 . 96 . . . Level 1 1 | . . . . . . 3 . . . Level 2 . | . . . . . . . . . . Level 3 . | . . . . . . . . . . Level 4 . | . . . . . . . . . . Level 5 . | . . . . . . . . . . High Security . | . . . . . . . . . . Max Security . | . . . . . . . . . . Peak Influence 250 | 5 51 50 . 73 . 250 . . . Initial . | . . . . . . . . . . Average 21 | . 7 2 . 2 . 37 . . . Influence Increases 4349 | 20 388 50 160 219 . 2467 200 550 295 Destroy 0b10 Robot/C 2500 | . 220 40 100 140 . 1260 160 360 220 Destroy 0b10 Robot/NC 245 | 20 40 . . 15 . 165 . 5 . Destroy Leader 496 | . 70 10 . . . 356 10 50 . Allied During Kill 42 | . . . . 9 . 3 . 30 . Trap Triggered on 0b10 10 | . 10 . . . . . . . . Successful Hack 149 | . 43 . . 44 . 62 . . . Disable Machine 44 | . 4 . . 4 . 36 . . . Destroy Structure 308 | . 1 . . 7 . 300 . . . Lose Combat Pursuer 555 | . . . 60 . . 285 30 105 75 Influence Decreases 4349 | 20 388 50 160 219 . 2467 200 550 295 Time Decay 3849 | 20 388 50 140 219 . 2314 170 443 105 Lost Part 340 | . . . . . . 115 30 20 175 Lost Ally 160 | . . . 20 . . 38 . 87 15 Squads Dispatched 22 | . 2 . . . . 19 . 1 . Investigation 7 | . 2 . . . . 5 . . . Extermination 9 | . . . . . . 9 . . . Reinforcement 4 | . . . . . . 4 . . . Assault 1 | . . . . . . . . 1 . Garrison 1 | . . . . . . 1 . . . Intercept . | . . . . . . . . . . Searches Triggered . | . . . . . . . . . . Construction Impeded 1 | . . . . . . 1 . . . Haulers Reinforced 1 | . . . . . . 1 . . . Active Scanning Responses . | . . . . . . . . . . Cargo Convoy Interrupts . | . . . . . . . . . . Stealth | -11 -10 -10 -10 -7 -7 -5 -5 -5 -5 --------- Run | Yrd Mat Min Sub Rec Scr Fac Upp Upp War Distress Signals 1 | . . . . . . . . . 1 Communications Jammed 27 | . . . . . . 27 . . . Distress Signals 26 | . . . . . . 26 . . . Times Spotted 204 | . 19 2 16 8 . 95 11 20 33 Peak Tracking Total 16 | . 4 1 5 4 . 5 5 8 16 Tactical Retreats 27 | . . . 2 . . 15 2 4 4 Traps | -11 -10 -10 -10 -7 -7 -5 -5 -5 -5 ------- Run | Yrd Mat Min Sub Rec Scr Fac Upp Upp War Traps Triggered 3 | . 1 . 1 . . 1 . . . Indirectly . | . . . . . . . . . . Trap Hack Attempts . | . . . . . . . . . . Triggered . | . . . . . . . . . . Disarmed 4 | . . . . . . 4 . . . Reprogrammed 4 | . 4 . . . . . . . . Reused 1 | . 1 . . . . . . . . Traps Extracted . | . . . . . . . . . . Installed . | . . . . . . . . . . Triggered 1 | . 1 . . . . . . . . Machines | -11 -10 -10 -10 -7 -7 -5 -5 -5 -5 ---------- Run | Yrd Mat Min Sub Rec Scr Fac Upp Upp War Machines Disabled 15 | . 1 . 2 1 . 9 . 2 . Max in Single Turn 3 | . 1 . 1 . . 3 . . . Garrison Access 2 | . . . . . . 2 . . . Machines Repaired . | . . . . . . . . . . Machines Dismantled . | . . . . . . . . . . Machines Sabotaged . | . . . . . . . . . . Overloaded Fab Kills . | . . . . . . . . . . Hacking | -11 -10 -10 -10 -7 -7 -5 -5 -5 -5 --------- Run | Yrd Mat Min Sub Rec Scr Fac Upp Upp War Machines Accessed 56 | . 9 . 4 12 . 23 1 1 6 Terminals 22 | . 7 . . 5 . 9 1 . . Fabricators 1 | . . . . . . 1 . . . Repair Stations 3 | . . . . . . 3 . . . Recycling Units 13 | . 2 . . 7 . 4 . . . Scanalyzers 4 | . . . . . . 4 . . . Garrison Access 2 | . . . . . . 2 . . . Total Hacks 156 | . 22 . 7 32 . 74 1 1 19 Successful 118 | . 14 . 7 17 . 59 1 1 19 Failed 38 | . 8 . . 15 . 15 . . . Catastrophic 1 | . . . . 1 . . . . . Database Lockouts . | . . . . . . . . . . Manual 47 | . 26 . . 12 . 9 . . . Terminals 53 | . 20 . . 12 . 20 1 . . Fabricators 1 | . . . . . . 1 . . . Repair Stations 10 | . . . . . . 10 . . . Recycling Units 28 | . 2 . . 20 . 6 . . . Scanalyzers 32 | . . . . . . 32 . . . Garrison Access 5 | . . . . . . 5 . . . Terminal Hacks 49 | . 12 . 7 1 . 8 1 1 19 Record 23 | . . . 4 . . . 1 . 18 Part Schematic 14 | . 10 . . . . 4 . . . Robot Schematic 2 | . . . . 1 . 1 . . . Open Door 3 | . . . 1 . . . . 1 1 Locate Traps 2 | . 1 . . . . 1 . . . Disarm Traps 2 | . . . . . . 2 . . . Reprogram Traps 1 | . 1 . . . . . . . . Proto ID Catalog 1 | . . . 1 . . . . . . Release Object 1 | . . . 1 . . . . . . Fabricator Hacks 1 | . . . . . . 1 . . . Build 1 | . . . . . . 1 . . . Repair Station Hacks 7 | . . . . . . 7 . . . Scan Component 4 | . . . . . . 4 . . . Repair 3 | . . . . . . 3 . . . Recycling Unit Hacks 12 | . 2 . . 7 . 3 . . . Retrieve Components 12 | . 2 . . 7 . 3 . . . Scanalyzer 29 | . . . . . . 29 . . . Insert Component 11 | . . . . . . 11 . . . Analyze 18 | . . . . . . 18 . . . Garrison Access Hacks 4 | . . . . . . 4 . . . Unlock Access 1 | . . . . . . 1 . . . Seal Access 2 | . . . . . . 2 . . . Coupler Status 1 | . . . . . . 1 . . . Unauthorized Hacks 16 | . . . . 9 . 7 . . . Terminals 11 | . . . . 4 . 7 . . . Botnet 11 | . . . . 4 . 7 . . . Fabricators . | . . . . . . . . . . Repair Stations . | . . . . . . . . . . Recycling Units 5 | . . . . 5 . . . . . Reject 5 | . . . . 5 . . . . . Scanalyzers . | . . . . . . . . . . Garrison Access . | . . . . . . . . . . Data Cores Recovered . | . . . . . . . . . . Used . | . . . . . . . . . . Hacking Detections 36 | . 10 . . 11 . 15 . . . Full Trace Events 14 | . 5 . . 4 . 5 . . . Feedback Events 2 | . . . . 2 . . . . . Corruption 2 | . . . . 2 . . . . . Feedback Blocked . | . . . . . . . . . . Robot Schematics Acquired 2 | . . . . 1 . 1 . . . Robots Built . | . . . . . . . . . . Authchips . | . . . . . . . . . . Time . | . . . . . . . . . . Total Robot Build Rating . | . . . . . . . . . . Part Schematics Acquired 48 | . 10 . . . 8 23 2 5 . Parts Built 2 | . . . . . . 2 . . . Authchips . | . . . . . . . . . . Time 139 | . . . . . . 139 . . . Total Part Build Rating 18 | . . . . . . 18 . . . Part Studies Acquired . | . . . . . . . . . . Parts Repaired 3 | . . . . . . 3 . . . Time 122 | . . . . . . 122 . . . Parts Recycled . | . . . . . . . . . . Recycled Matter . | . . . . . . . . . . Retrieved Matter . | . . . . . . . . . . Retrieved Components 62 | . 20 . . 23 . 19 . . . Parts Scanalyzed 11 | . . . . . . 11 . . . Part Schematics Acquired 11 | . . . . . . 11 . . . Parts Damaged 2 | . . . . . . 2 . . . Bothacking | -11 -10 -10 -10 -7 -7 -5 -5 -5 -5 ------------ Run | Yrd Mat Min Sub Rec Scr Fac Upp Upp War Used RIF Installer . | . . . . . . . . . . Robots Hacked . | . . . . . . . . . . Non-combat . | . . . . . . . . . . Combat . | . . . . . . . . . . Robot Hacks Applied . | . . . . . . . . . . Relay Couplers Released . | . . . . . . . . . . Fabnet Peak Effective % . | . . . . . . . . . . Robots Rewired 5 | . . . . 3 . . . 2 . Allies Hacked 1 | . . . . . . . . . 1 Hacks Repelled . | . . . . . . . . . . Allies | -11 -10 -10 -10 -7 -7 -5 -5 -5 -5 -------- Run | Yrd Mat Min Sub Rec Scr Fac Upp Upp War Total Allies 23 | . . . 10 3 . . . 10 . Largest Group 7 | . . . 7 6 5 5 . 4 2 Highest-Rated Group 324 | . . . 133 115 103 103 . 324 59 Highest-Rated Ally 81 | . . . 19 40 40 40 . 81 30 Total Orders . | . . . . . . . . . . Ally Attacks 163 | . . . 27 39 . 27 . 66 4 Total Damage 3461 | . . . 440 702 . 381 . 1938 . Kills 28 | . . . 4 7 . 3 . 14 . Allies Corrupted . | . . . . . . . . . . Allies Melted 1 | . . . . . . . . 1 . Intel | -11 -10 -10 -10 -7 -7 -5 -5 -5 -5 ------- Run | Yrd Mat Min Sub Rec Scr Fac Upp Upp War Active Infowar (turns) 23219 | 106 1428 968 4064 1427 3034 4431 3099 2834 1828 Sensors 10689 | . 1085 968 875 . . . 3099 2834 1828 Structural 6494 | 106 1428 968 3992 . . . . . . Jamming 8892 | . . . . 1427 3034 4431 . . . Robot Analysis Total . | . . . . . . . . . . Derelict Logs Recovered 7 | . . . 2 . 3 . 1 1 . Drone Launches . | . . . . . . . . . . Drone Recoveries . | . . . . . . . . . . Exploration | -11 -10 -10 -10 -7 -7 -5 -5 -5 -5 ------------- Run | Yrd Mat Min Sub Rec Scr Fac Upp Upp War Turns Passed 26932 | 126 1428 968 4734 2681 3034 5756 3489 2834 1882 Spaces Moved 12162 | 58 783 587 2502 1170 1077 2201 1745 1183 856 Core 21 | 17 3 . . . . . . . 1 Treads 2770 | 41 780 587 1325 . . . . . 37 Legs 9371 | . . . 1177 1170 1077 2201 1745 1183 818 Wheels . | . . . . . . . . . . Hover . | . . . . . . . . . . Flight . | . . . . . . . . . . Fastest Speed 50 | 50 160 160 130 200 270 170 187 187 167 Average Speed 197 | 127 161 160 168 218 270 202 193 218 190 Slowest Speed 550 | 160 550 160 200 270 270 320 425 262 490 Overloaded Moves . | . . . . . . . . . . Propulsion Burnouts . | . . . . . . . . . . Robots Hopped . | . . . . . . . . . . Potential Cave-ins 3 | . . . 2 . . . . 1 . Cave-ins Triggered . | . . . . . . . . . . Exploration Rate (%) 79 | 4 97 98 97 99 53 60 99 98 85 Regions Visited 9 Branch Regions 7 Pre-discovered Areas 3 | . . 1 1 . . . . . 1 Known Exits Taken 9 | 1 1 1 1 1 1 1 1 1 . Unknown Exits Taken . | . . . . . . . . . . Scrap Searched 20 | . . 3 10 . 2 . 3 2 . Spaces Dug 21 | . . . 12 . . 5 4 . . Terrain Destroyed 308 | . . . 16 7 . 175 46 16 48 Melee . | . . . . . . . . . . Projectile 107 | . . . 16 7 . 58 4 16 6 AOE 201 | . . . . . . 117 42 . 42 Terrain Rammed . | . . . . . . . . . . Walls Destroyed . | . . . . . . . . . . Machines Disabled . | . . . . . . . . . . Actions | -11 -10 -10 -10 -7 -7 -5 -5 -5 -5 --------- Run | Yrd Mat Min Sub Rec Scr Fac Upp Upp War Total 14175 | 95 860 608 2788 1269 1212 3106 1800 1390 1047 Wait 1159 | 7 19 12 130 30 118 556 . 159 128 Move 12153 | 57 782 586 2501 1169 1076 2200 1744 1182 856 Hop . | . . . . . . . . . . Pick Up 100 | 7 10 4 10 20 7 28 5 3 6 Fast Attach 50 | 2 . . 2 7 . 26 3 6 4 Attach 42 | 5 5 . 5 . 1 11 4 . 11 Detach 16 | 2 . . 6 1 1 4 1 1 . Swap 52 | . 1 . 20 4 2 17 3 3 2 Drop 95 | . 2 . 18 10 7 38 4 7 9 Fire 468 | 15 41 6 81 14 . 221 36 24 30 Melee . | . . . . . . . . . . Ram . | . . . . . . . . . . Kick . | . . . . . . . . . . Crush 12 | . . . 12 . . . . . . Escape Stasis 5 | . . . . . . 5 . . . Rewire 23 | . . . 3 14 . . . 5 1 Trap . | . . . . . . . . . . Miscellaneous . | . . . . . . . . . . Route ------- -11/Scrapyard -10/Materials (discovered 5 exits: *Mat x3 / *Min x2) -10/Mines (discovered 4 exits: *Mat x2 / *Exi / *Sub) -10/Subcaves (discovered 3 exits: *Mat x2 / *Rec) -7/Recycling (discovered 2 exits: *Fac / *Scr) -7/Scraptown -5/Factory (discovered 4 exits: *Fac x2 / *Upp x2) -5/Upper Caves -5/Upper Caves (discovered 2 exits: *Fac / *War) -5/Warlord History --------- Turn | Location | Event 27 | -11/Scrapyard | Identified exit to Materials 27 | -11/Scrapyard | Discovered exit to Materials (range 16) 127 | -11/Scrapyard | Entered Materials 127 | -10/Materials | Evolved 1 slot: Utility x1 306 | -10/Materials | Build established: Hacker-Mutant 423 | -10/Materials | Identified exit to Materials 423 | -10/Materials | Discovered exit to Materials (range 12) 654 | -10/Materials | Identified exit to Mines 654 | -10/Materials | Discovered exit to Mines (range 12) 791 | -10/Materials | Discovered exit to Materials (range 16) 1073 | -10/Materials | Discovered exit to Materials (range 4) 1532 | -10/Materials | Discovered exit to Mines (range 14) 1555 | -10/Materials | Entered Mines 1693 | -10/Mines | Discovered exit to Materials (range 5) 1726 | -10/Mines | Learned location of Storage (-7) 1849 | -10/Mines | Received a Rocket Launcher from a helpful Derelict 2033 | -10/Mines | A weapon hastily lodged in a ceiling crevice suddenly fell to the ground 2266 | -10/Mines | Deemed a non-threat by the Exiles lab entrance 2266 | -10/Mines | Identified exit to Exiles 2266 | -10/Mines | Discovered exit to Exiles (range 5) 2292 | -10/Mines | Identified exit to Subcaves 2292 | -10/Mines | Discovered exit to Subcaves (range 9) 2306 | -10/Mines | Discovered exit to Materials (range 6) 2439 | -10/Mines | Found a damaged Exp. Sensor Array with a note attached 2442 | -10/Mines | Found Prototype Device 2523 | -10/Mines | Entered Subcaves 2563 | -10/Subcaves | A swath of the cavern ceiling suddenly collapsed 2683 | -10/Subcaves | Learned location of Zion (-6) 2684 | -10/Subcaves | Shifting Twisted Machinery released Sub. Shrapnel Launcher 2687 | -10/Subcaves | Shifting Twisted Machinery released Ripper 2695 | -10/Subcaves | Identified exit to Materials 2695 | -10/Subcaves | Discovered exit to Materials (range 10) 3178 | -10/Subcaves | A swath of the cavern ceiling suddenly collapsed 3315 | -10/Subcaves | Visited triangular shrine 3325 | -10/Subcaves | Found Prototype Device 3326 | -10/Subcaves | Identified Exp. Sensor Array 3328 | -10/Subcaves | Identified V3-11A's Pendant 3333 | -10/Subcaves | Befriended Subdweller 3464 | -10/Subcaves | Visited Clippyterm 3469 | -10/Subcaves | Learned Factory trap positions 3518 | -10/Subcaves | Befriended Subdweller 3590 | -10/Subcaves | Identified exit to Recycling 3590 | -10/Subcaves | Discovered exit to Recycling (range 15) 4499 | -10/Subcaves | Approached by friendly Subdweller 4677 | -10/Subcaves | Ambushed by Subdweller buried in earth 4678 | -10/Subcaves | Befriended Subdweller 4724 | -10/Subcaves | Ambushed by Subdweller buried in earth 4728 | -10/Subcaves | Befriended Subdweller 5034 | -10/Subcaves | Visited 4L-MR0's lab 5059 | -10/Subcaves | Found Cargo Legs 5060 | -10/Subcaves | Attached Cargo Legs, gained temporary slots: Utility x2 5088 | -10/Subcaves | Befriended Subdweller 5103 | -10/Subcaves | Befriended Subdweller 5127 | -10/Subcaves | Shifting Twisted Machinery released Hvy. Battle Rifle 5128 | -10/Subcaves | Shifting Twisted Machinery released Flamer 5368 | -10/Subcaves | Befriended Subdweller 5378 | -10/Subcaves | Befriended Subdweller 5400 | -10/Subcaves | Learned Materials stockpile data 5459 | -10/Subcaves | Discovered exit to Materials (range 16) 5523 | -10/Subcaves | Befriended Subdweller 6225 | -10/Subcaves | Shifting Twisted Machinery released Mak. Light Armor Plating 6331 | -10/Subcaves | Shifting Twisted Machinery released Battle Rifle 6510 | -10/Subcaves | Found SUBCON Basin 7257 | -10/Subcaves | Entered Recycling 7257 | -7/Recycling | Accompanied by 6 allies 7585 | -7/Recycling | Identified exit to Factory 7585 | -7/Recycling | Discovered exit to Factory (range 9) 7791 | -7/Recycling | Core integrity fell below 50% 8280 | -7/Recycling | Scanned before Scraplab entrance 8308 | -7/Recycling | Entered Scraplab 9926 | -7/Recycling | Identified exit to Scraptown 9926 | -7/Recycling | Discovered exit to Scraptown (range 3) 9938 | -7/Recycling | Entered Scraptown 9938 | -7/Scraptown | Accompanied by 5 allies 9938 | -7/Scraptown | System corruption cleaned by C-Scrubber 10282 | -7/Scraptown | Visited Symbiants 10320 | -7/Scraptown | Visited Cyclists 10341 | -7/Scraptown | Visited Comm Corps 10395 | -7/Scraptown | Visited SPCMW 10438 | -7/Scraptown | Visited Junk Repository 10587 | -7/Scraptown | Visited Awakened 10765 | -7/Scraptown | Scanned Subdweller tech in exchange for log data 10774 | -7/Scraptown | Learned Research garrison access intel 10777 | -7/Scraptown | Learned Research emergency access door positions 10779 | -7/Scraptown | Learned location of 1 exit from Factory 10858 | -7/Scraptown | Discovered exit to Factory (range 13) 11273 | -7/Scraptown | Delivered V3-11A's Pendant to T0-NE2 in exchange for information 12543 | -7/Scraptown | Tech Extrapolator generated special schematic: Machine Rigger 12940 | -7/Scraptown | Tech Extrapolator generated special schematic: Deep Structural Scanner 12972 | -7/Scraptown | Entered Factory 12972 | -5/Factory | Accompanied by 5 allies 12972 | -5/Factory | Evolved 10 slots: Power x1, Propulsion x2, Utility x6, Weapon x1 12973 | -5/Factory | Identified exit to Factory 12974 | -5/Factory | Loaded intel: 78 trap records 13362 | -5/Factory | Lost 4 allies 13402 | -5/Factory | Build established: Hacker-Tank 13913 | -5/Factory | Fabricated Enh. Nova Cannon (x2) 14521 | -5/Factory | Found Imp. Powered Armor 15364 | -5/Factory | Lost 3 parts (3u) 15547 | -5/Factory | Found Prototype Launcher 15547 | -5/Factory | Identified Scatter Rocket Array 16210 | -5/Factory | Repaired Imp. Powered Armor 16238 | -5/Factory | Repaired Lgt. Humpback 16989 | -5/Factory | Repaired Scatter Rocket Array 17068 | -5/Factory | Identified exit to Garrison 17557 | -5/Factory | Identified exit to Upper Caves 17557 | -5/Factory | Discovered exit to Upper Caves (range 16) 17940 | -5/Factory | Garrison activated, responded to threat 17960 | -5/Factory | Discovered exit to Factory (range 15) 18395 | -5/Factory | Discovered exit to Upper Caves (range 13) 18728 | -5/Factory | Entered Upper Caves 18968 | -5/Upper Caves | Lost 3 parts (1n1u1w) 18976 | -5/Upper Caves | Attracted the attention of an 0b10 checkpoint 19163 | -5/Upper Caves | Encountered a Warlord checkpoint 19236 | -5/Upper Caves | Build established: Hacker-Mutant 20171 | -5/Upper Caves | Learned 12 Factory zone layouts 20470 | -5/Upper Caves | Build established: Hacker-Skirmisher 20556 | -5/Upper Caves | Identified exit to Upper Caves 20556 | -5/Upper Caves | Discovered exit to Upper Caves (range 13) 22217 | -5/Upper Caves | Entered another Upper Caves area 22249 | -5/Upper Caves | Learned Factory trap positions 22315 | -5/Upper Caves | Prototype Device suddenly appears! 22330 | -5/Upper Caves | Found Prototype Device 22330 | -5/Upper Caves | Identified Amulet of Y3-NDR 22348 | -5/Upper Caves | Joined by bewildered Wizard 22349 | -5/Upper Caves | Joined by bewildered Wizard 22350 | -5/Upper Caves | Joined by bewildered Wizard 22405 | -5/Upper Caves | Joined by bewildered Wizard 22741 | -5/Upper Caves | Lost 3 allies 22776 | -5/Upper Caves | Joined by bewildered Wizard 22777 | -5/Upper Caves | Joined by bewildered Wizard 22779 | -5/Upper Caves | Joined by bewildered Wizard 23032 | -5/Upper Caves | Identified exit to Warlord 23032 | -5/Upper Caves | Discovered exit to Warlord (range 7) 23046 | -5/Upper Caves | Encountered a Warlord checkpoint 23887 | -5/Upper Caves | Discovered exit to Factory (range 15) 23954 | -5/Upper Caves | Attracted the attention of an 0b10 outpost 23991 | -5/Upper Caves | Lost 4 allies 25051 | -5/Upper Caves | Entered Warlord 25051 | -5/Warlord | Accompanied by 2 allies 25473 | -5/Warlord | Learned location of Armory (-4) 25473 | -5/Warlord | Learned Testing emergency access door positions 25473 | -5/Warlord | Learned 4 Armory zone layouts 25473 | -5/Warlord | Learned 4 Armory zone layouts 25473 | -5/Warlord | Learned 4 Access zone layouts 25473 | -5/Warlord | Learned 4 Testing zone layouts 25473 | -5/Warlord | Learned Research fabricator intel 25473 | -5/Warlord | Learned Research repair station intel 25473 | -5/Warlord | Learned Research scanalyzer intel 25473 | -5/Warlord | Learned Research garrison access intel 25865 | -5/Warlord | Met Warlord 25890 | -5/Warlord | Warlord's base attacked by MAIN.C 26240 | -5/Warlord | Warlord forces counterattacked 26565 | -5/Warlord | Warlord base infiltrated, sounded retreat 26566 | -5/Warlord | Enhanced Grunt warped into view 26566 | -5/Warlord | Enhanced Grunt warped into view 26566 | -5/Warlord | Enhanced Grunt warped into view 26566 | -5/Warlord | Enhanced Demolisher warped into view 26566 | -5/Warlord | Enhanced Demolisher warped into view 26566 | -5/Warlord | Enhanced Demolisher warped into view 26671 | -5/Warlord | Found Prototype Device 26698 | -5/Warlord | Identified Exp. Shock Absorption System 26719 | -5/Warlord | Lost 7 allies 26767 | -5/Warlord | Spotted Executioner 26775 | -5/Warlord | Spotted Striker 26801 | -5/Warlord | Core integrity fell below 50% 26808 | -5/Warlord | Destroyed Executioner 26822 | -5/Warlord | Lost 5 allies 26840 | -5/Warlord | Destroyed Striker 26882 | -5/Warlord | Found Prototype Processor 26888 | -5/Warlord | Identified Exp. Targeting Computer 26899 | -5/Warlord | Found Prototype Processor 26900 | -5/Warlord | Identified Exp. Core Analyzer 26923 | -5/Warlord | Core integrity fell below 20% 26933 | -5/Warlord | Destroyed by G-67 Veteran with Plasma Rifle Last Messages --------------- 26913_ Slug penetrates G-50 Soldier. 26913_ Slug penetrates Wall. 26914_ G-50 Soldier destroyed. 26915_ Penetrated by Slug. 26917_ Imp. Quantum Reactor destroyed. 26918_ Critical hit (Burn: +27). 26919_ Slug penetrates G-50 Soldier. 26919_ Slug penetrates Wall. 26919_ Penetrated by Slug. 26920_ Lrn. Proton Cannon destroyed. 26921_ Adv. Shield Generator destroyed. 26922_ Penetrated by Slug. 26925_ Enh. Nova Cannon destroyed. 26926_ Penetrated by Slug. 26929_ Dropped Huge Storage Unit. 26930_ Penetrated by Slug. 26930_ Wave Gun destroyed. 26930_ Penetrated by Slug. 26933_ Slug penetrates Wall. 26933_ Adv. Heat Sink destroyed. Map ----- +----------------------------------------------------+ | ???# #???????????????????????? | | ???# ^ "" #######+####?????????????????????? | | ####### ^ "" #?# #?????????????????????? | | ## """ #?# !! #?????????????????????? | | """ # """ #?# ! = #?????????????????????? | | """ # "" #?# == #?????????????????????? | | """ + "" #?# #?????????????????????? | | # #?# #?????????????????????? | | """ # #?# #?????????????????????? | | """ # """ #?# #?????????????????????? | | """ # """ #?# #?????????????????????? | | # """ ## # ###?????????????????????? | | ###### """ ## ???????????????????????? | | ###### """ ##????##??????????????????? | | # # #??? #??????????????????? | | #### #""????????????????? | | # # #"""#??????????????? | | # #;"";##??? ?????????? | | ###### ==[ # ;"" #?? ?????????? | | #############??## |!%=% ## ;;"" ### ## ????????? | | # #??# =%=|!| #########? | | # & #?## %! =* =!="""""""#? | | # ] && ###; * ! !g*]i* [%=]%=""""""#? | | # !] # % % ||%*gh%!!==!%%%%! ## | | # g ! !!%=%h%!%g[=[]=]%%! + | | % = ! # ! %!|@!!/g!!%%%%*%!==* + | | ; == / %!!!!sg%=*%[*![!==! ## | | # ## ""##+## # ! /%!!!]g!==*% =*[ = """""#? | | % %%!%!*%! # | ==!* % """""#? | | %]*%=*![ #% " # ########? | | % %^!!= ### ######"";;####??????????? | | | = =!== "# ### ###"";##?????????????? | | ###"#+%##%=#"#+###### "####?#""##??????????????? | | ?## ## ## # "#?????""????????????????# | | ?#"" ""##?# # ##???????????????????????# | | ?#"X X"#??# # ###????????????????????????# | | ?#"" ""#??# ! # #??????????????????????????# | | ?#"""""#??# = # #??????????????????????????# | | ?#"""""#??# = | # #?????????????????????????## | | ?#######??# = | # #????????????????????????## | | #?????????# # #????????????????????????# | | #?????????##+#####+## #????????????????????##### | | #?????###### ##### ##??????????????????## # # | | #?????#]] + #??????????????????# | | #?????#/ # #???????????????????# | | ??????#/ # ####????????????????# ## | | ??????#** # #?????????????###### | | ???##?###### #####+########???????????????????? | | #### ###???# #?# #??????#?????????????????### | | #???# #?# """ #????? ????????????????????? | +----------------------------------------------------+ Best States ------------- Heat Dissipation 97 Energy Generation 45 Energy Capacity 1015 Matter Stores 300 Matter Capacity 300 Sight Range 16 Robot Scan Range 20 Terrain Scan Density 10 Jamming Range 14 Corruption Block 10 Armor Coverage 550 Resistance: KI 35 Resistance: TH 35 Resistance: EX 35 Resistance: EM 35 Resistance: I 35 Resistance: S 35 Resistance: P 35 Evasion (%) 55 Targeting Accuracy 12 Core Analysis 8 Recoil Reduction 4 Offensive Hacking 30 Defensive Hacking 25 Authchip Count 3 Item Schematics ----------------- Sml. Storage Unit | -10/Materials | Hacked Med. Storage Unit | -10/Materials | Hacked Lrg. Storage Unit | -10/Materials | Hacked Hcp. Storage Unit | -10/Materials | Hacked Huge Storage Unit | -10/Materials | Hacked Cargo Storage Unit | -10/Materials | Hacked Mining Laser | -10/Materials | Hacked Sensor Array | -10/Materials | Hacked Structural Scanner | -10/Materials | Hacked Lgt. Treads | -10/Materials | Hacked Mak. Coolant Network | -7/Scraptown | Extrapolated Spk. Medium Treads | -7/Scraptown | Extrapolated 0b10 Decoder Chip [Skirmisher] | -7/Scraptown | Extrapolated Mak. Light Armor Plating | -7/Scraptown | Extrapolated Machine Rigger | -7/Scraptown | Extrapolated Ripper | -7/Scraptown | Extrapolated Mak. Leg | -7/Scraptown | Extrapolated Deep Structural Scanner | -7/Scraptown | Extrapolated 0b10 Decoder Chip [Generic] | -5/Factory | Extrapolated 0b10 Decoder Chip [Scout] | -5/Factory | Extrapolated Beamcaster | -5/Factory | Extrapolated Mak. System Shield | -5/Factory | Scanalyzed Mak. Thermal Plating | -5/Factory | Extrapolated Mak. Transmission Jammer | -5/Factory | Extrapolated Adv. Point Defense System | -5/Factory | Hacked Mak. Terrain Scan Processor | -5/Factory | Extrapolated System Restoration Module | -5/Factory | Scanalyzed Adv. System Shield | -5/Factory | Scanalyzed Enh. Nova Cannon | -5/Factory | Scanalyzed Lgt. Humpback | -5/Factory | Scanalyzed Mak. ECM Suite | -5/Factory | Extrapolated Multitool | -5/Factory | Extrapolated Biometal Leg | -5/Factory | Hacked Nova Cannon | -5/Factory | Hacked Exp. Sensor Array | -5/Factory | Scanalyzed Hacking Suite | -5/Factory | Scanalyzed EM Shield | -5/Factory | Scanalyzed Adv. ECM Suite | -5/Factory | Scanalyzed Hyp. Gauss Cannon | -5/Factory | Scanalyzed Lrn. Proton Cannon | -5/Factory | Scanalyzed Com. HERF Cannon | -5/Factory | Hacked Mak. Salvage Targeting Computer | -5/Upper Caves | Extrapolated Hvy. Beamcaster | -5/Upper Caves | Extrapolated Mak. Hacking Suite | -5/Upper Caves | Extrapolated Mak. Trap Scanner | -5/Upper Caves | Extrapolated Spk. Treads | -5/Upper Caves | Extrapolated Mak. Power Source | -5/Upper Caves | Extrapolated Mak. Core Shielding | -5/Upper Caves | Extrapolated Robot Schematics ------------------ S-27 Virus | -7/Recycling | Hacked E-15 Imp | -5/Factory | Hacked Fabricated ------------ Enh. Nova Cannon | x2 | -5/Factory | Preloaded Repaired ---------- Imp. Powered Armor | 8% | -5/Factory Lgt. Humpback | 66% | -5/Factory Scatter Rocket Array | 2% | -5/Factory Studied --------- None Alien Tech Used ----------------- None Achievements -------------- None Challenges ------------ None Game ------ Seed CloakLongswordPrototype Manual? 0 Play Time 01:52:19 Cumulative 293.1 hours Start 2026.01.20 @ 08:44:48 End 2026.01.20 @ 10:44:03 Sessions 1 Manual Loads 0 Difficulty Explorer Special Mode None Game No. 452 Rogue 0 Adventurer 0 Explorer 452 Win Type - Total 0 Types 0/0/0/0/0/0/0/0/0/0 Lore% 76 Gallery% 70 Achievement% 55 Wizard Run 0 Options --------- Layout 1 ASCII 0 Keyboard 0 Movement Mouse Keybinds 1 Fullscreen 1 Font 24/Smallcaps Map View 50x35 Zoom Use 0% Tactical HUD 1 Map Filters NONE Filters NONE Steam 1 RUN: d01672fb-c594-456d-a12b-3f27238b55d7